{"text_format":"1","workbook":"xlsx","n_sheets":9,"sheets":["Detention Profiles","DC Full Dataset","DC Map","Terms & Definitions","DC Methodology","Enumerator Guideline","DC Assessment Form","DC Location Info","index map"],"not_rendered":{"charts":0,"images":43,"macros":1,"external_links":0,"defined_names":26,"comments":0,"pivot_tables":0},"unopened":[],"bounds":{"document_bytes":16777216,"sheet_cells":100000,"rows_first":2000,"rows_last":500,"rows_between":2000,"halvings":0,"cell_chars":16384,"cell_head_chars":4096},"cells_cut":0,"cells_raw":0,"read":"whole","date_system":"1900"}

{"sheet":"Detention Profiles","index":0,"n_rows":69,"n_cols":15,"rows_kept":69,"cut":false,"hidden":false,"merged":[[58,6,58,10],[59,6,59,10],[39,6,39,10],[38,6,38,10],[40,6,40,10],[41,6,41,10],[43,6,43,10],[44,6,44,10],[45,6,45,10],[47,6,47,10],[48,6,48,10],[64,8,64,11],[67,0,67,11],[55,0,55,2],[54,0,54,11],[56,0,56,2],[57,0,57,11],[66,0,66,11],[68,0,68,11],[65,0,65,11],[55,3,55,5],[56,3,56,5],[58,3,58,5],[59,3,59,5],[63,0,63,1],[63,2,63,4],[63,5,63,7],[63,8,63,11],[61,0,61,11],[62,0,62,11],[58,0,58,2],[64,0,64,1],[64,2,64,4],[64,5,64,7],[56,6,56,10],[39,3,39,5],[40,3,40,5],[43,3,43,5],[44,3,44,5],[45,3,45,5],[60,3,60,5],[49,3,49,5],[60,6,60,11],[51,3,51,5],[52,3,52,5],[53,3,53,5],[50,0,50,11],[48,3,48,5],[59,0,59,2],[60,0,60,2],[49,0,49,2],[51,0,51,2],[52,0,52,2],[53,0,53,2],[48,0,48,2],[51,6,51,10],[52,6,52,10],[53,6,53,10],[55,6,55,10],[28,0,28,2],[30,0,30,3],[37,0,37,2],[38,0,38,2],[33,0,33,2],[31,0,31,2],[32,0,32,2],[34,0,34,11],[32,11,33,11],[33,3,33,4],[38,3,38,5],[27,9,27,11],[29,9,29,11],[29,0,29,2],[47,0,47,2],[42,0,42,11],[44,0,44,2],[45,0,45,2],[43,0,43,2],[46,0,46,11],[36,0,36,2],[36,3,36,5],[37,3,37,5],[47,3,47,5],[36,6,36,10],[37,6,37,10],[41,0,41,2],[39,0,39,2],[40,0,40,2],[41,3,41,5],[28,3,28,4],[29,3,29,4],[28,9,28,11],[31,3,31,4],[32,3,32,4],[0,0,2,11],[25,9,25,11],[26,9,26,11],[25,5,25,8],[26,5,26,8],[3,2,4,8],[24,0,24,11],[5,0,5,11],[22,0,22,11],[23,0,23,11],[16,8,16,11],[8,8,14,11],[17,9,17,11],[18,9,18,11],[19,9,19,11],[20,9,20,11],[21,9,21,11],[25,0,26,2],[25,3,26,4]]}
[]
[null,null,null,null,null,null,null,null,null,null,null,null,null,"December"]
[]
[null,null,"Abusliem"]
[]
[]
[]
[null,null,null,null,null,null,null,null,{"$f":"IF(ISBLANK(VLOOKUP($C$4,'DC Full Dataset'!$A:$B,2,0)),\"N/A\", VLOOKUP($C$4,'DC Full Dataset'!$A:$B,2,0))","v":"2021-12-26"},"How to Use:"]
[null,null,null,null,null,null,null,null,"1. To view each Detention Center Profile please select the name of center you want to view from the dropdown list. \n2. To see the full dataset go to \"DC Data\" tab.\n3. For a map of all Detention Centres please go to ‘DC Map’.\n4. For definition of terms go to \"Terms & Definitions\" tab.\n5. For Detention Centre Methodology go to ‘DC methodology’\n6. For enumerator guidelines and tools see ‘Enumerator guidelines’ and ‘Assessment form’."]
[]
[]
[]
[]
[]
[]
[]
[null,null,null,null,null,null,null,null,"Detention Center location"]
[null,null,null,null,null,null,null,null,"Muhalla",{"$f":"IF(ISBLANK(VLOOKUP($C$4,'DC Location Info'!$A:$B,2,0)),\"N/A\", VLOOKUP($C$4,'DC Location Info'!$A:$B,2,0))","v":"Abu Salim al janubi"}]
[null,null,null,null,null,null,null,null,"Baladiya",{"$f":"IF(ISBLANK(VLOOKUP($C$4,'DC Location Info'!$A:$C,3,0)),\"N/A\", VLOOKUP($C$4,'DC Location Info'!$A:$C,3,0))","v":"Abusliem"}]
[null,null,null,null,null,null,null,null,"Mantika",{"$f":"IF(ISBLANK(VLOOKUP($C$4,'DC Location Info'!$A:$D,4,0)),\"N/A\", VLOOKUP($C$4,'DC Location Info'!$A:$D,4,0))","v":"Tripoli"}]
[]
[]
[]
[]
["DETENTION CENTER INFORMATION"]
["Number of Migrants on Day of Assessment",null,null,{"$f":"IF(ISBLANK(VLOOKUP($C$4,'DC Full Dataset'!$A:$I,9,0)),\"N/A\", VLOOKUP($C$4,'DC Full Dataset'!$A:$I,9,0))","v":300},null,"Registration system in place?",null,null,null,{"$f":"IF(ISBLANK(VLOOKUP($C$4,'DC Full Dataset'!$A:$H,8,0)),\"N/A\", VLOOKUP($C$4,'DC Full Dataset'!$A:$H,8,0))","v":"Yes"}]
[null,null,null,null,null,"Number of Staff",null,null,null,{"$f":"IF(ISBLANK(VLOOKUP($C$4,'DC Full Dataset'!$A:$G,7,0)),\"N/A\", VLOOKUP($C$4,'DC Full Dataset'!$A:$G,7,0))","v":"N/A"}]
["DEMOGRAPHICS & SHELTER",null,null,null,null,null,"0-18 years","19-59 years",">60 years","Total"]
["Are women and men kept separate?",null,null,{"$f":"IF(ISBLANK(VLOOKUP($C$4,'DC Full Dataset'!$A:$J,10,0)),\"N/A\", VLOOKUP($C$4,'DC Full Dataset'!$A:$J,10,0))","v":"Yes"},null,"Male",{"$f":"IF(ISBLANK(VLOOKUP($C$4,'DC Full Dataset'!$A:$L,12,0)),\"N/A\", VLOOKUP($C$4,'DC Full Dataset'!$A:$L,12,0))","v":95},{"$f":"IF(ISBLANK(VLOOKUP($C$4,'DC Full Dataset'!$A:$M,13,0)),\"N/A\", VLOOKUP($C$4,'DC Full Dataset'!$A:$M,13,0))","v":205},{"$f":"IF(ISBLANK(VLOOKUP($C$4,'DC Full Dataset'!$A:$N,14,0)),\"N/A\", VLOOKUP($C$4,'DC Full Dataset'!$A:$N,14,0))","v":0},{"$f":"IF(SUM(VLOOKUP($C$4,'DC Full Dataset'!$A:$N,14,0),VLOOKUP($C$4,'DC Full Dataset'!$A:$N,13,0),VLOOKUP($C$4,'DC Full Dataset'!$A:$N,12,0))=0,\"N/A\",SUM(VLOOKUP($C$4,'DC Full Dataset'!$A:$N,14,0),VLOOKUP($C$4,'DC Full Dataset'!$A:$N,13,0),VLOOKUP($C$4,'DC Full Dataset'!$A:$N,12,0)))","v":300}]
["Are adults and children kept separate?",null,null,{"$f":"IF(ISBLANK(VLOOKUP($C$4,'DC Full Dataset'!$A:$K,11,0)),\"N/A\", VLOOKUP($C$4,'DC Full Dataset'!$A:$K,11,0))","v":"No"},null,"Female",{"$f":"IF(ISBLANK(VLOOKUP($C$4,'DC Full Dataset'!$A:$O,15,0)),\"N/A\", VLOOKUP($C$4,'DC Full Dataset'!$A:$O,15,0))","v":0},{"$f":"IF(ISBLANK(VLOOKUP($C$4,'DC Full Dataset'!$A:$P,16,0)),\"N/A\", VLOOKUP($C$4,'DC Full Dataset'!$A:$P,16,0))","v":0},{"$f":"IF(ISBLANK(VLOOKUP($C$4,'DC Full Dataset'!$A:$Q,17,0)),\"N/A\", VLOOKUP($C$4,'DC Full Dataset'!$A:$Q,17,0))","v":0},{"$f":"IF(SUM(VLOOKUP($C$4,'DC Full Dataset'!$A:$O,15,0),VLOOKUP($C$4,'DC Full Dataset'!$A:$P,16,0),VLOOKUP($C$4,'DC Full Dataset'!$A:$Q,17,0))=0,\"N/A\",SUM(VLOOKUP($C$4,'DC Full Dataset'!$A:$O,15,0),VLOOKUP($C$4,'DC Full Dataset'!$A:$P,16,0),VLOOKUP($C$4,'DC Full Dataset'!$A:$Q,17,0)))","v":"N/A"},null,null,null,"19-59 total","60+ total"]
["VULNERABLE POPULATIONS",null,null,null,null,"MAIN NATIONALITIES PRESENT IN CENTRE"]
["Number of unaccompanied minors",null,null,{"$f":"IF(ISBLANK(VLOOKUP($C$4,'DC Full Dataset'!$A:$AC,29,0)),\"N/A\", VLOOKUP($C$4,'DC Full Dataset'!$A:$AC,29,0))","v":"N/A"},null,null,"Nationality 1","Nationality 2","Nationality 3","Nationality 4","Nationality 5","Remaining Nationalities"]
["Number of breastfeeding women",null,null,{"$f":"IF(ISBLANK(VLOOKUP($C$4,'DC Full Dataset'!$A:$AD,30,0)),\"N/A\", VLOOKUP($C$4,'DC Full Dataset'!$A:$AD,30,0))","v":0},null,"Nationality",{"$f":"IF(ISBLANK(VLOOKUP($C$4,'DC Full Dataset'!$A:$R,18,0)),\"N/A\", VLOOKUP($C$4,'DC Full Dataset'!$A:$R,18,0))","v":"Eritrea"},{"$f":"IF(ISBLANK(VLOOKUP($C$4,'DC Full Dataset'!$A:$T,20,0)),\"N/A\", VLOOKUP($C$4,'DC Full Dataset'!$A:$T,20,0))","v":"GuineaBissau"},{"$f":"IF(ISBLANK(VLOOKUP($C$4,'DC Full Dataset'!$A:$V,22,0)),\"N/A\", VLOOKUP($C$4,'DC Full Dataset'!$A:$V,22,0))","v":"Nigeria"},{"$f":"IF(ISBLANK(VLOOKUP($C$4,'DC Full Dataset'!$A:$X,24,0)),\"N/A\", VLOOKUP($C$4,'DC Full Dataset'!$A:$X,24,0))","v":"Sudan"},{"$f":"IF(ISBLANK(VLOOKUP($C$4,'DC Full Dataset'!A:Z,26,0)),\"N/A\", VLOOKUP($C$4,'DC Full Dataset'!A:Z,26,0))","v":"Somalia"},{"$f":"IF(ISBLANK(VLOOKUP($C$4,'DC Full Dataset'!$A:$AB,28,0)),\"N/A\",VLOOKUP($C$4,'DC Full Dataset'!$A:$AB,28,0))","v":67}]
["Number of pregnant women",null,null,{"$f":"IF(ISBLANK(VLOOKUP($C$4,'DC Full Dataset'!$A:$AE,31,0)),\"N/A\", VLOOKUP($C$4,'DC Full Dataset'!$A:$AE,31,0))","v":0},null,"# Migrants",{"$f":"IF(ISBLANK(VLOOKUP($C$4,'DC Full Dataset'!$A:$S,19,0)),\"N/A\", VLOOKUP($C$4,'DC Full Dataset'!$A:$S,19,0))","v":65},{"$f":"IF(ISBLANK(VLOOKUP($C$4,'DC Full Dataset'!$A:$U,21,0)),\"N/A\", VLOOKUP($C$4,'DC Full Dataset'!$A:$U,21,0))","v":50},{"$f":"IF(ISBLANK(VLOOKUP($C$4,'DC Full Dataset'!$A:$W,23,0)),\"N/A\", VLOOKUP($C$4,'DC Full Dataset'!$A:$W,23,0))","v":45},{"$f":"IF(ISBLANK(VLOOKUP($C$4,'DC Full Dataset'!$A:$Y,25,0)),\"N/A\", VLOOKUP($C$4,'DC Full Dataset'!$A:$Y,25,0))","v":38},{"$f":"IF(ISBLANK(VLOOKUP($C$4,'DC Full Dataset'!$A:$AA,27,0)),\"N/A\", VLOOKUP($C$4,'DC Full Dataset'!$A:$AA,27,0))","v":35}]
["SECTORIAL DATA"]
["HEALTH"]
["Health services available in centre?",null,null,{"$f":"IF(ISBLANK(VLOOKUP($C$4,'DC Full Dataset'!$A:$AF,32,0)),\"N/A\", VLOOKUP($C$4,'DC Full Dataset'!$A:$AF,32,0))","v":"Yes"},null,null,"Number of births in last 30 days",null,null,null,null,{"$f":"IF(ISBLANK(VLOOKUP($C$4,'DC Full Dataset'!$A:$AR,44,0)),\"N/A\", VLOOKUP($C$4,'DC Full Dataset'!$A:$AR,44,0))","v":0}]
["How often are health services available?",null,null,{"$f":"IF(ISBLANK(VLOOKUP($C$4,'DC Full Dataset'!$A:$AG,33,0)),\"N/A\", VLOOKUP($C$4,'DC Full Dataset'!$A:$AG,33,0))","v":"Often (at least once a week)"},null,null,"Location where births took place",null,null,null,null,{"$f":"IF(ISBLANK(VLOOKUP($C$4,'DC Full Dataset'!$A:$AS,45,0)),\"N/A\", VLOOKUP($C$4,'DC Full Dataset'!$A:$AS,45,0))","v":"N/A"}]
["Is there a health clinic in the centre?",null,null,{"$f":"IF(ISBLANK(VLOOKUP($C$4,'DC Full Dataset'!$A:$AH,34,0)),\"N/A\", VLOOKUP($C$4,'DC Full Dataset'!$A:$AH,34,0))","v":"No"},null,null,"Did children fall ill during the last 30 days? ",null,null,null,null,{"$f":"IF(ISBLANK(VLOOKUP($C$4,'DC Full Dataset'!$A:$AN,40,0)),\"N/A\", VLOOKUP($C$4,'DC Full Dataset'!$A:$AN,40,0))","v":"None"}]
["Health examination upon entry of detainee",null,null,{"$f":"IF(ISBLANK(VLOOKUP($C$4,'DC Full Dataset'!$A:$AI,35,0)),\"N/A\", VLOOKUP($C$4,'DC Full Dataset'!$A:$AI,35,0))","v":"Yes"},null,null,"If many, primary reported illness:",null,null,null,null,{"$f":"IF(ISBLANK(VLOOKUP($C$4,'DC Full Dataset'!$A:$AO,41,0)),\"N/A\", VLOOKUP($C$4,'DC Full Dataset'!$A:$AO,41,0))","v":"N/A"}]
["Procedure for seriously ill or injured detainees",null,null,{"$f":"IF(ISBLANK(VLOOKUP($C$4,'DC Full Dataset'!$A:$AJ,36,0)),\"N/A\", VLOOKUP($C$4,'DC Full Dataset'!$A:$AJ,36,0))","v":"Referred to the hospital"},null,null,"Did adults fall ill during the last 30 days?",null,null,null,null,{"$f":"IF(ISBLANK(VLOOKUP($C$4,'DC Full Dataset'!$A:$AP,42,0)),\"N/A\", VLOOKUP($C$4,'DC Full Dataset'!$A:$AP,42,0))","v":"Few"}]
["Availability of medicine in centre",null,null,{"$f":"IF(ISBLANK(VLOOKUP($C$4,'DC Full Dataset'!$A:$AK,37,0)),\"N/A\", VLOOKUP($C$4,'DC Full Dataset'!$A:$AK,37,0))","v":"Irregularly (available every once in a while)"},null,null,"If many, primary reported illness:",null,null,null,null,{"$f":"IF(ISBLANK(VLOOKUP($C$4,'DC Full Dataset'!$A:$AQ,43,0)),\"N/A\", VLOOKUP($C$4,'DC Full Dataset'!$A:$AQ,43,0))","v":"N/A"}]
["WASH"]
["Regular access to drinking water?",null,null,{"$f":"IF(ISBLANK(VLOOKUP($C$4,'DC Full Dataset'!$A:$AT,46,0)),\"N/A\", VLOOKUP($C$4,'DC Full Dataset'!$A:$AT,46,0))","v":"Yes"},null,null,"Are latrines functioning?",null,null,null,null,{"$f":"IF(ISBLANK(VLOOKUP($C$4,'DC Full Dataset'!$A:$AU,47,0)),\"N/A\", VLOOKUP($C$4,'DC Full Dataset'!$A:$AU,47,0))","v":"Some"}]
["Availability of sanitary hygiene kits",null,null,{"$f":"IF(ISBLANK(VLOOKUP($C$4,'DC Full Dataset'!$A:$AX,50,0)),\"N/A\", VLOOKUP($C$4,'DC Full Dataset'!$A:$AX,50,0))","v":"Yes"},null,null,"Separate male/female latrines",null,null,null,null,{"$f":"IF(ISBLANK(VLOOKUP($C$4,'DC Full Dataset'!$A:$AV,48,0)),\"N/A\", VLOOKUP($C$4,'DC Full Dataset'!$A:$AV,48,0))","v":"Yes"}]
["Availability of buckets",null,null,{"$f":"IF(ISBLANK(VLOOKUP($C$4,'DC Full Dataset'!$A:$AY,51,0)),\"N/A\", VLOOKUP($C$4,'DC Full Dataset'!$A:$AY,51,0))","v":"Yes"},null,null,"Separate male/female bathing areas",null,null,null,null,{"$f":"IF(ISBLANK(VLOOKUP($C$4,'DC Full Dataset'!$A:$AW,49,0)),\"N/A\", VLOOKUP($C$4,'DC Full Dataset'!$A:$AW,49,0))","v":"Yes"}]
["FOOD"]
["Food provided daily?",null,null,{"$f":"IF(ISBLANK(VLOOKUP($C$4,'DC Full Dataset'!$A:$BA,53,0)),\"N/A\", VLOOKUP($C$4,'DC Full Dataset'!$A:$BA,53,0))","v":"Yes"},null,null,"Supplementary feeding for pregnant / lactating mothers",null,null,null,null,{"$f":"IF(ISBLANK(VLOOKUP($C$4,'DC Full Dataset'!$A:$AL,38,0)),\"N/A\", VLOOKUP($C$4,'DC Full Dataset'!$A:$AL,38,0))","v":"Never"}]
["Frequency of food supply",null,null,{"$f":"IF(ISBLANK(VLOOKUP($C$4,'DC Full Dataset'!$A:$BB,54,0)),\"N/A\", VLOOKUP($C$4,'DC Full Dataset'!$A:$BB,54,0))","v":"Three times a day"},null,null,"Supplementary feeding for young children",null,null,null,null,{"$f":"IF(ISBLANK(VLOOKUP($C$4,'DC Full Dataset'!$A:$AM,39,0)),\"N/A\", VLOOKUP($C$4,'DC Full Dataset'!$A:$AM,39,0))","v":"Never"}]
["Food distribution supported by",null,null,{"$f":"IF(ISBLANK(VLOOKUP($C$4,'DC Full Dataset'!$A:$BC,55,0)),\"N/A\", VLOOKUP($C$4,'DC Full Dataset'!$A:$BC,55,0))","v":"Government (DCIM)"}]
["PROTECTION"]
["Private space for detainees to meet with international organizations",null,null,{"$f":"IF(ISBLANK(VLOOKUP($C$4,'DC Full Dataset'!$A:$BD,56,0)),\"N/A\", VLOOKUP($C$4,'DC Full Dataset'!$A:$BD,56,0))","v":"Yes"},null,null,"Availability of psychosocial services",null,null,null,null,{"$f":"IF(ISBLANK(VLOOKUP($C$4,'DC Full Dataset'!$A:$BG,59,0)),\"N/A\", VLOOKUP($C$4,'DC Full Dataset'!$A:$BG,59,0))","v":"Yes"}]
["Migrants can access legal services",null,null,{"$f":"IF(ISBLANK(VLOOKUP($C$4,'DC Full Dataset'!$A:$BE,57,0)),\"N/A\", VLOOKUP($C$4,'DC Full Dataset'!$A:$BE,57,0))","v":"Yes"},null,null,"Availability of family tracing services",null,null,null,null,{"$f":"IF(ISBLANK(VLOOKUP($C$4,'DC Full Dataset'!$A:$BH,60,0)),\"N/A\", VLOOKUP($C$4,'DC Full Dataset'!$A:$BH,60,0))","v":"Yes"}]
["Majority of migrants have documentation (passport/ID/etc.)",null,null,{"$f":"IF(ISBLANK(VLOOKUP($C$4,'DC Full Dataset'!$A:$BF,58,0)),\"N/A\", VLOOKUP($C$4,'DC Full Dataset'!$A:$BF,58,0))","v":"No"},null,null,"Access to outdoor spaces",null,null,null,null,{"$f":"IF(ISBLANK(VLOOKUP($C$4,'DC Full Dataset'!$A:$BI,61,0)),\"N/A\", VLOOKUP($C$4,'DC Full Dataset'!$A:$BI,61,0))","v":"Limited access to outdoors"}]
["SITE FACILITY INFORMATION"]
["Presence of electrical and functioning lighting",null,null,{"$f":"IF(ISBLANK(VLOOKUP($C$4,'DC Full Dataset'!$A:$BJ,62,0)),\"N/A\", VLOOKUP($C$4,'DC Full Dataset'!$A:$BJ,62,0))","v":"A lot"},null,null,"Availability of laundry facilities",null,null,null,null,{"$f":"IF(ISBLANK(VLOOKUP($C$4,'DC Full Dataset'!$A:$AZ,52,0)),\"N/A\", VLOOKUP($C$4,'DC Full Dataset'!$A:$AZ,52,0))","v":"Yes"}]
["Functionality of ventilation system in centre",null,null,{"$f":"IF(ISBLANK(VLOOKUP($C$4,'DC Full Dataset'!$A:$BK,63,0)),\"N/A\", VLOOKUP($C$4,'DC Full Dataset'!$A:$BK,63,0))","v":"Often"},null,null,"Frequency of power cuts",null,null,null,null,{"$f":"IF(ISBLANK(VLOOKUP($C$4,'DC Full Dataset'!$A:$BL,64,0)),\"N/A\", VLOOKUP($C$4,'DC Full Dataset'!$A:$BL,64,0))","v":"No power cuts"}]
["ACCESS TO INFORMATION"]
["Migrants have access to mobile phones",null,null,{"$f":"IF(ISBLANK(VLOOKUP($C$4,'DC Full Dataset'!$A:$BM,65,0)),\"N/A\", VLOOKUP($C$4,'DC Full Dataset'!$A:$BM,65,0))","v":"No"},null,null,"Migrants have access to television",null,null,null,null,{"$f":"IF(ISBLANK(VLOOKUP($C$4,'DC Full Dataset'!$A:$BP,68,0)),\"N/A\", VLOOKUP($C$4,'DC Full Dataset'!$A:$BP,68,0))","v":"No"}]
["Migrants are able to make international calls",null,null,{"$f":"IF(ISBLANK(VLOOKUP($C$4,'DC Full Dataset'!$A:$BN,66,0)),\"N/A\", VLOOKUP($C$4,'DC Full Dataset'!$A:$BN,66,0))","v":"No"},null,null,"Migrants have access to internet",null,null,null,null,{"$f":"IF(ISBLANK(VLOOKUP($C$4,'DC Full Dataset'!$A:$BQ,69,0)),\"N/A\", VLOOKUP($C$4,'DC Full Dataset'!$A:$BQ,69,0))","v":"No"}]
["Migrants have access to printed media",null,null,{"$f":"IF(ISBLANK(VLOOKUP($C$4,'DC Full Dataset'!$A:$BO,67,0)),\"N/A\", VLOOKUP($C$4,'DC Full Dataset'!$A:$BO,67,0))","v":"No"}]
[]
["INFORMATION SOURCES"]
["KI 1",null,{"$f":"IF(ISBLANK(VLOOKUP($C$4,'DC Full Dataset'!$A:$BR,70,0)),\"N/A\", VLOOKUP($C$4,'DC Full Dataset'!$A:$BR,70,0))","v":"DCIM Detention centre manager"},{"$f":"IF(ISBLANK(VLOOKUP($C$4,'DC Full Dataset'!$A:$BQ,69,0)),\"N/A\", VLOOKUP($C$4,'DC Full Dataset'!$A:$BQ,69,0))","v":"No"},{"$f":"IF(ISBLANK(VLOOKUP($C$4,'DC Full Dataset'!$A:$BQ,69,0)),\"N/A\", VLOOKUP($C$4,'DC Full Dataset'!$A:$BQ,69,0))","v":"No"},"KI 3",null,null,{"$f":"IF(ISBLANK(VLOOKUP($C$4,'DC Full Dataset'!$A:$BT,72,0)),\"N/A\", VLOOKUP($C$4,'DC Full Dataset'!$A:$BT,72,0))","v":"N/A"},{"$f":"IF(ISBLANK(VLOOKUP($C$4,'DC Full Dataset'!$A:$BQ,69,0)),\"N/A\", VLOOKUP($C$4,'DC Full Dataset'!$A:$BQ,69,0))","v":"No"},null,{"$f":"IF(ISBLANK(VLOOKUP($C$4,'DC Full Dataset'!$A:$BQ,69,0)),\"N/A\", VLOOKUP($C$4,'DC Full Dataset'!$A:$BQ,69,0))","v":"No"}]
["KI 2",null,{"$f":"IF(ISBLANK(VLOOKUP($C$4,'DC Full Dataset'!$A:$BV,71,0)),\"N/A\", VLOOKUP($C$4,'DC Full Dataset'!$A:$BV,71,0))","v":"DCIM Detention centre staff member"},{"$f":"IF(ISBLANK(VLOOKUP($C$4,'DC Full Dataset'!$A:$BQ,69,0)),\"N/A\", VLOOKUP($C$4,'DC Full Dataset'!$A:$BQ,69,0))","v":"No"},{"$f":"IF(ISBLANK(VLOOKUP($C$4,'DC Full Dataset'!$A:$BQ,69,0)),\"N/A\", VLOOKUP($C$4,'DC Full Dataset'!$A:$BQ,69,0))","v":"No"},"KI 4",null,null,{"$f":"IF(ISBLANK(VLOOKUP($C$4,'DC Full Dataset'!$A:$BU,73,0)),\"N/A\", VLOOKUP($C$4,'DC Full Dataset'!$A:$BU,73,0))","v":"N/A"},{"$f":"IF(ISBLANK(VLOOKUP($C$4,'DC Full Dataset'!$A:$BQ,69,0)),\"N/A\", VLOOKUP($C$4,'DC Full Dataset'!$A:$BQ,69,0))","v":"No"},null,{"$f":"IF(ISBLANK(VLOOKUP($C$4,'DC Full Dataset'!$A:$BQ,69,0)),\"N/A\", VLOOKUP($C$4,'DC Full Dataset'!$A:$BQ,69,0))","v":"No"}]
[]
["For all of IOM Libya DTM publications, datasets and maps please visit: www.globaldtm.info/libya"]
[]
["For all feedback and queries please contact: tteppert@iom.int"]

{"sheet":"DC Full Dataset","index":1,"n_rows":16,"n_cols":74,"rows_kept":16,"cut":false,"hidden":false,"merged":[]}
["Detention Centre Name (EN)","Date of Assesssment","Detention Centre Name (AR)",null,null,null,null,"Functioning registration system","Number of migrants on day of assessment","Are women & men separate","Are children & adults separate","Number male less 18 years of age","Number of male between 19-59","Number of male over 60","Number female less 18 years of age","Number of female between 19-59","Number of female over 60","Nationality most present in Detention Center","Number of detained from the most present nationality","Second most present nationality in Detention Center","Number of detained from the second most present nationality","Third most present nationality in Detention Center","Number of detained from the third most present nationality","Fourth most present nationality in Detention Center","Number of detained from the  fourth most present nationality","Fifth most present nationality in Detention Center","Number of detained from the fifth most present nationality","Number of individuals from remaining nationalities",null,"Number of breastfeeding women","Number of pregnant women","Are health services available at cente","How often are health services available","Is there a health clinic in the center?","Do detainees undergo health examination upon entry to facility?","What happens when a detainee is seriously ill or injured?","How often are medicines available in the center?","Is supplementary feeding available for pregnant / lactating mothers? ","Is supplementary feeding available for young children?","Did children fall ill during the last 30 days ","If MANY what is the primary reported illness?","Did adults fall ill during the last 30 days ","If MANY what is the primary reported illness?","Number of births in the past 30 days? ","If Yes, where did the pregnant ladies give birth? ","Do migrants have regular access to drinking water?","Are latrines functioning?","Are male and female separated latrines available? ","Are male and female separated bathing areas available?","Are sanitary hygiene kits available?","Are buckets available at site? ","Is there laundry facilities?","Does the DC provide daily food?","How often is food supplied  ","Who are the food distributions supported by?","Is there a private space where the detainees can talk to officials from international organizations / NGO?","Do migrants have access to legal services?","Do the majority of detainees have passports, identification card or other documents?","Are psychosocial support services available?","Is family-tracing available to migrants?","How much time do migrants spend outdoors during the day?","How much electrical and functioning ligthing is at the center?","Is the ventilation system working in the center?","How frequent are power cuts?","Do migrants have access to mobile phones?","Are migrants able to make international calls?","Do migrants have access to printed media?","Do migrants have access to television?","Do migrants have access to the internet?","Who did you collect the information for this assessment from? (KI 1)","KI2","KI3","KI4","DC Name No spaces"]
["Abusliem","2021-12-26","ابو سليم",null,null,null,null,"Yes",300,"Yes","No",95,205,0,0,0,0,"Eritrea",65,"GuineaBissau",50,"Nigeria",45,"Sudan",38,"Somalia",35,67,null,0,0,"Yes","Often (at least once a week)","No","Yes","Referred to the hospital","Irregularly (available every once in a while)","Never","Never","None",null,"Few",null,0,null,"Yes","Some","Yes","Yes","Yes","Yes","Yes","Yes","Three times a day","Government (DCIM)","Yes","Yes","No","Yes","Yes","Limited access to outdoors","A lot","Often","No power cuts","No","No","No","No","No","DCIM Detention centre manager","DCIM Detention centre staff member"]
["Ain Zara","2021-12-26","عين زارة",null,null,null,null,"No",800,"Yes","Yes",3,734,0,3,60,0,null,null,null,null,null,null,null,null,null,null,null,null,0,0,"Yes","Often (at least once a week)","Yes","No","Treated on site if/when a health staff comes","Irregularly (available every once in a while)","Never","Never","None",null,"Few",null,0,null,"Yes","All","Yes","Yes","Yes","Yes","No","Yes","Twice a day","Government (DCIM)","Yes","No","No","No","No","More than half a day","A lot","Irregulary","Occasional","No","No","Yes","No","No","DCIM Detention centre staff member"]
["Al Bayda","2021-12-26","البيضاء ",null,null,null,null,"Yes",29,"Yes","Yes",0,29,0,0,0,0,"Sudan",14,"Egypt",10,"Chad",5,null,null,null,null,null,null,0,0,"Yes","Often (at least once a week)","No","Yes","Treated on site if/when a health staff comes","Irregularly (available every once in a while)","Never","Never","None",null,"None",null,0,"Not applicable (no births)","Yes","All","Yes","Yes","Yes","Yes","Yes","Yes","Twice a day","Government (DCIM)","Yes","No","Yes","No","Yes","Less than half a day","A lot","Often","Occasional","Yes","No","No","No","No","DCIM Detention centre staff member"]
["Al kufra","2021-12-30","الكفرة الجوف",null,null,null,null,"Yes",0,"Yes","No",0,0,0,0,0,0,null,null,null,null,null,null,null,null,null,null,null,null,0,0,"Yes","Often (at least once a week)","Yes","Yes","Referred to the hospital","Regularly (available most of the time)","Never","Never","None",null,"None",null,0,"Not applicable (no births)","Yes","Some","Yes","Yes","No","No","No","Yes","Once a day","Government (DCIM)","No","No","Yes","Yes","No","More than half a day","Some","Often","Occasional","Yes","Yes","No","No","Yes","DCIM Detention centre manager"]
["Algatroun","2021-12-31","القطرون",null,null,null,null,"Yes",0,"Yes","No",0,0,0,0,0,0,null,null,null,null,null,null,null,null,null,null,null,null,0,0,"No",null,null,null,null,null,null,null,null,null,null,null,null,null,"No","Few","Yes","Yes","No","No","No","Yes","Once a day","NGO","Yes","No","Yes","No","No","They move freely between indoors and outdoors","Limited","No ventilation","Frequent","Yes","Yes","No","No","No","DCIM Detention centre manager"]
["Alqubba","2021-12-26","القبة",null,null,null,null,"Yes",45,"Yes","Yes",10,35,0,0,0,0,"Egypt",40,"Sudan",5,null,null,null,null,null,null,null,null,0,0,"Yes","Irregularly (once every few weeks","No","Yes","Treated on site if/when a health staff comes","Never","Never","Never","None",null,"Some",null,0,"Not applicable (no births)","Yes","All","Yes","Yes","Yes","Yes","Yes","No","Don’t know","Government (DCIM)","Yes","No","No","No","Yes","Limited access to outdoors","A lot","Irregulary","Frequent","No","No","No","No","No","DCIM Detention centre manager"]
["Baten Al Jabal","2021-12-26","باطن الجبل",null,null,null,null,"Yes",87,"Yes","No",null,null,null,null,null,null,null,null,null,null,null,null,null,null,null,null,null,null,0,0,"Yes","Often (at least once a week)","No","No","Treated on site if/when a health staff comes","Never","Never","Never","Few",null,"Few",null,0,"Not applicable (no births)","No","Some","No","No","No","Yes","No","Yes","Three times a day","Government (DCIM)","No","No","No","No","No","Don't know","Some","Often","Frequent","Don't Know","Don't Know","No","No","No","NGO worker active in detention centre"]
["Benghazi Ganfouda","2021-12-31","بنغازي قنفودة",null,null,null,null,"Yes",199,"Yes","Yes",4,150,30,3,11,1,"Sudan",32,"Chad",34,"Eritrea",24,"Bangladesh",24,"Egypt",29,56,null,0,0,"Yes","Often (at least once a week)","Yes","Yes","Referred to the hospital","Regularly (available most of the time)","Irregularly (available every once in a while)","Irregularly (available every once in a while)","Some",null,"Some",null,0,"At the hospital","Yes","Some","Yes","Yes","No","No","No","Yes","Three times a day","Government (DCIM)","Yes","Yes","Yes","Yes","Yes","Less than half a day","Some","No ventilation","Occasional","No","Yes","No","No","No","DCIM Detention centre staff member"]
["Ejdabia","2021-12-31","اجدابيا",null,null,null,null,"Yes",0,"No","No",0,0,0,0,0,0,null,null,null,null,null,null,null,null,null,null,null,null,0,0,"No",null,null,null,null,null,null,null,null,null,null,null,null,null,"Yes","All","No","No","No","No","No","No","Don’t know","Government (DCIM)","Yes","Yes","No","No","No","Limited access to outdoors","A lot","Often","Occasional","No","No","No","No","No","DCIM Detention centre manager","DCIM Detention centre staff member"]
["Ghiryan Aburshada","2021-12-26"," غريان أبو رشادة",null,null,null,null,"Yes",70,"No","Yes",0,70,0,0,0,0,"Sudan",30,"Mali",12,"Chad",11,"syria",8,"Ghana",3,6,null,0,0,"Yes","Often (at least once a week)","No","No","Treated on site if/when a health staff comes","Regularly (available most of the time)","Never","Never","None",null,"Few",null,0,"Not applicable (no births)","Yes","Few","No","No","Yes","Yes","No","Yes","Three times a day","Government (DCIM)","Yes","No","No","No","No","Limited access to outdoors","Some","Don't know","Frequent","No","Don't Know","No","No","No","DCIM Detention centre manager"]
["Shahhat","2021-12-26","شحات",null,null,null,null,"Yes",19,"Yes","Yes",0,19,0,0,0,0,"Egypt",16,"Chad",3,null,null,null,null,null,null,null,null,0,0,"Yes","Irregularly (once every few weeks","No","Yes","Treated on site if/when a health staff comes","Irregularly (available every once in a while)","Never","Never","None",null,"None",null,0,"Not applicable (no births)","Yes","All","Yes","Yes","Yes","Yes","Yes","Yes","Twice a day","Government (DCIM)","Yes","No","Yes","No","Yes","Less than half a day","A lot","Often","Occasional","Yes","No","No","No","No","DCIM Detention centre staff member"]
["Shara Zawya","2021-12-26","شارع الزاوية",null,null,null,null,"No",91,"Yes","No",20,0,0,11,59,1,"Eritrea",33,"Nigeria",18,"Somalia",17,"Sudan",9,"Ethiopia",9,5,null,8,3,"Yes","Often (at least once a week)","No","No","Referred to the hospital","Regularly (available most of the time)","Regularly (available most of the time)","Regularly (available most of the time)","Few",null,"Few",null,2,"At the hospital","No","Some","No","Yes","Yes","No","No","Yes","Twice a day","Government (DCIM)","No","No","No","No","No","They move freely between indoors and outdoors","Some","No ventilation","Occasional","No","No","No","No","No","DCIM Detention centre manager"]
["Tobruk","2021-12-31","طبرق",null,null,null,null,"Yes",10,"Yes","No",0,10,0,0,0,0,"Egypt",6,"Sudan",4,null,null,null,null,null,null,null,null,0,0,"No",null,null,null,null,null,null,null,null,null,null,null,null,null,"Yes","Few","Yes","Yes","No","No","No","Yes","Twice a day","Government (DCIM)","Yes","Yes","Yes","No","No","Less than half a day","Limited","No ventilation","Frequent","No","No","No","No","No","DCIM Detention centre manager","DCIM Detention centre staff member"]
["Triq al Sika","2021-12-26","طريق السكة",null,null,null,null,"Yes",752,"Yes","Yes",21,595,0,15,121,0,"Eritrea",198,"Somalia",107,"Sudan",91,"Niger",82,"CôtedIvoire",53,221,null,0,0,"Yes","Often (at least once a week)","Yes","Yes","Treated on site if/when a health staff comes","Regularly (available most of the time)","Irregularly (available every once in a while)","Irregularly (available every once in a while)","Few",null,"Some",null,0,"Not applicable (no births)","No","Some","Yes","Yes","Yes","Yes","No","Yes","Three times a day","Government (DCIM)","No","No","No","No","No","Don't know","A lot","No ventilation","Frequent","No","No","No","No","No","DCIM Detention centre manager"]
["Wadi Al Hai","2021-12-26","وادي الحي",null,null,null,null,"No",1600,"No","Yes",null,null,null,null,null,null,null,null,null,null,null,null,null,null,null,null,null,null,0,0,"Yes","Often (at least once a week)","No","No","Treated on site if/when a health staff comes","Irregularly (available every once in a while)","Never","Never","Some",null,"Many","Coughing/respiratory tract infection Fever",0,"Not applicable (no births)","No","Some","No","No","No","No","No","Yes","Three times a day","Government (DCIM)","No","Yes","No","No","No","Don't know","Some","Often","Frequent","Don't Know","Don't Know","No","No","No","DCIM Detention centre manager"]

{"sheet":"DC Map","index":2,"n_rows":0,"n_cols":0,"rows_kept":0,"cut":false,"hidden":false,"merged":[]}

{"sheet":"Terms & Definitions","index":3,"n_rows":63,"n_cols":1,"rows_kept":63,"cut":false,"hidden":false,"merged":[]}
["Glossary of Terms"]
["Official Detention Centre capacity: The maximum number of migrants the detention centre is able to contain."]
["Number of staff in detention centre: The total number of DCIM employees currently working in the detention centre."]
["Registration system: A system of gathering details from migrants when they enter the centre where the data is stored in a filing system or databse."]
["Number of migrants in detention: The total number of migrants in detention on the day of assessment. "]
["Unaccompanied or separated minors: Children who have been separated from both parents and other relatives and are not being cared for by any adult, who, by law or custom, is responsible for doing so."]
["Lactating women: Number of women who are currently breastfeeding in the detention centre"]
["Number of pregnant women: Number of women who are expecting a child currently in the detention centre."]
["Health services include any of the following: Clinic on site, referral to hospital, vaccinations, provision of medicines to migrants when required, supplementary feeding to mothers or to young children."]
[]
["Frequency of service provision"]
["·       Often: At least once a week"]
["·       Irregularly: Once every few weeks"]
["·       Don’t know: Please select if KI does not have the answer available."]
[]
["Regularity of medicine availability"]
["·       Regularly: Available for most days of the week"]
["·       Irregularly: Available for only some days of the week"]
["·       Not available: There is no access to it"]
["·       Don’t know: Please select if KI does not have the answer available."]
[]
["Supplementary feeding: A planned additional food or nutrient that is added to the usual diet, often as a powder, formula, or tablet."]
[]
["Populations Affected"]
["·       Few:  Less than 5% of the population "]
["·       Some: Between 5 and 20% of the population"]
["·       A lot: Over 20% of the population"]
[]
["·       Malnutrition: Condition that develops when the body does not get the right amount of the vitamins, minerals, and other nutrients it needs to maintain healthy tissues and organ function."]
["·       Dehydration: a harmful reduction in the amount of water in the body."]
["·       Regular availability of drinking water: Water that is safe to drink is usually available with rarely any shortages."]
["·       Functioning latrines: Toilet or other human waste disposal facility that is connected to the sewage system in the centre and functioning within."]
["·       Sanitary hygiene kits: Kits that may include some or more of the following: bucket, soap, sponge, toothbrush, toothpaste, towels, shampoo, and possibly sanitary napkins."]
["·       Laundry facilities: Machine and capability to wash clothing at temperatures of 60°C or higher."]
["Provision of food in centre: Centre provides at least one meal per day to each migrant present."]
["Access to legal services: Access to a lawyer for legal counsel, or to embassy in case of lost/missing documentation."]
["Majority of detainees: Over half of the detention centre population."]
["Psychosocial services: Directed towards individuals who are not able to cope with the recent events or the new situation in which they live."]
["Family tracing: Services to help migrants locate missing family members."]
[]
["Migrants' access to outdoor spaces"]
["·       Freely move: They move freely between indoors and outdoors"]
["·       More than half a day: They have access to outoor spaces for less than half a day"]
["·       Less than half a day: They have access to outoor spaces for less than half a day"]
["·       Limited access to outdoors: Migrants only rarely can go outdoors"]
[]
["Availability of electricity and functional lighting: "]
["·       A lot: All parts of the centre are well lit most of the time."]
["·       Some: Some parts of the centre are lit some of the time."]
["·       Limited: Lighting is available in only a few parts of the centre or not very regularly."]
["·       None: No electricity or electrical lighting are available in the centre most of the time."]
[]
["Frequency of power cuts"]
["·       Frequent: Power cuts occur several times a week."]
["·       Occasional: Power cuts occur several times a month."]
["·       No power cuts: Power cuts don’t usually occur."]
["·       Don’t know: KI does not have this information available."]
[]
["Access to mobile phones: Migrants are able to use a mobile phone every once in a while if needed."]
["Ability to make international calls: Migrants can make calls to other countries."]
["Access to printed media: Includes access to posters, brochures, books, or other printed material."]
["Access to television: There is a television in the centre that migrants can watch."]
["Access to the internet: Migrants are able to access the internet either through a smart phone or computer on occasion."]

{"sheet":"DC Methodology","index":4,"n_rows":52,"n_cols":1,"rows_kept":52,"cut":false,"hidden":false,"merged":[]}
["DTM Libya  - Detention Center Profiles Version: 1"]
["Methodology "]
["Displacement Tracking Matrix (DTM) │ International Organization for Migration (IOM)"]
[]
["What is Detention Centre Profiling?"]
["This document presents IOM Libya’s Detention Centre Profiling 2017 methodology. Part of IOM Libya’s Displacement Tracking Matrix (DTM) programme, Detention Centre Profiling has been implemented since May 2017 to monitor vulnerable populations in held in detention. "]
[]
["Detention Centre Profiling is component of IOM Libya’s Displacement Tracking Matrix programme. IOM’s DTM programme is a set of methods and tools that permits the development of a common narrative to complex situations. It establishes a regular and dynamic system to monitor the vulnerabilities of beneficiaries and deliver routine information packages on Libya’s displaced and migrant populations. "]
["IOM Libya’s Detention Centre Profiling component is a data orientated tool that routinely provides specific sex and age demographic data and key secotrial information on individuals held in Libya’s detention Centres. Detention Centre Profiling is targeted at providing specific quantitative data to humanitarian actors working on migration. IOM Libya’s Detention Centre Profiling component captures data from across all accessible detention Centres managed by Libya’s Department for Combatting Illegal Migration (DCIM)."]
["Detention Centre Profiling Populations of Concern:"]
[]
["IOM defines a migrant as any person who is moving or has moved across an international border or within a state away from his/her habitual place of residence, regardless of (1) the person’s legal status; (2) whether the movement is voluntary or involuntary; (3) what the causes for the movement are; or (4) what the length of the stay is. For DTM programmatic purposes in Libya, a migrant is considered any person present in Libya who does not possess Libyan nationality. As such, DTM does not differentiate between migrant statuses, length of residence in the country, or migratory intentions. It counts as migrants those who may have come from refugee producing countries, along with long-term residents and labour migrants who engage in a circular migration pattern between Libya and their countries of origin."]
[]
["Objective of Detention Centre Profiling "]
["Detention Centre Profiles aim to provide in-depth snapshots of detention centres under the management of Libya’s Directorate for Combatting Illegal Migration (DCIM) in Libya."]
["Modelled after the site assessments carried out by DTM in other contexts, such as South Sudan, these assessments gather information on the facilities of the centres in addition to the socio-demographic characteristics of migrants held in those centres."]
[]
[]
["DTM indicators for Detention Centre Profiles were selected following consultations with specific actors working in detention and drawn from consultative meetings with humanitarian partners on DTM’s Mobility Tracking component."]
["Each detention Centre assessed is selected based on accessibility. DTM’s expert assessments teams coordinate each assessment with IOM’s Assisted Voluntary Return and Repatriation (AVRR) and disembarkation support teams to ensure that IOM is providing a holistic approach to each of its interventions in a detention centre. "]
[]
["IOM enumerators visit each detention centre as part of a larger IOM team carrying out activities in that centre.  Data will be collected through Key Informant interviews and inputted into the Detention Centre form."]
["KI Selection:"]
["Key Informants will ideally be a combination of:"]
["·       Detention Centre Management staff"]
["·       Health workers from INGOs active in the detention centre"]
["·       Other NGO workers active in detention centre undertaking other services"]
["Importantly DTM assessments teams are deployed in as part of larger team as it allows for greater flexibility in triangulating data and collecting multiple sources of information."]
["All data is extract and triangulated from health workers present in centre, DCIM management, DCIM staff, NGO’s present in the detention centre and IOM’s AVVR team and disembarkation team. All data is triangulated at IOM office in Benghazi and Tripoli and shared with DTM Tunis office for final verification."]
["The Detention Centre Profiles are a data-orientated product targeted at actors of the Mixed Migration Working Group (MMWG) who provide assistance and support to migrants in detention. The data collected in a Detention Centre Profile aims to support the MMWG in better targeting assistance within centres and align the members of the MMWG’s interventions with the needs and the vulnerabilities in each centre."]
["Information gathered includes:"]
["·       Site characteristics (number of employees, centre capacity, type and functionality of facilities available)"]
["·       Availability of services (availability of health, psychosocial, legal, translation, communication services)"]
["·       Population data (number of detainees, sex-age disaggregation, main nationalities)"]
["·       Detention centre conditions (Time spent in outdoor areas, "]
["Data Collection Methodology"]
["Building on the achievements of 2016, IOM’s DTM programme has delivered multiple trainings to all its enumerators on protection orientated DTM.  All DTM staff are trained in specific techniques on how to collect data through key informant interviews, direct observation and focus group discussions. Each enumerator has been trained specifically on a gender sensitive to data collection. DTM Libya implements its Gender Sensitive Guidelines when carrying out Focus Group discussions (See DTM Libya Gender Sensitive Focus Group Guidelines - Mobility Tracking DTM Libya)."]
["Some of the methods employed are as follows:"]
["·       Secondary data review"]
["DTM routinely carries out desk reviews of it data both internally and externally. Internally DTM reviews Libya’s DTM data with IOM’s HQ DTM support team. Data shared with IOM’s DTM expert teams allows for the development of greater internal verification techniques. Externally DTM Libya works with specific groups such as the Information Management and Assessment Working Group (IMAWG) and the Mixed Migration Working Goup (MMWG). Additionally IOM’s DTM unit has established the Strategic Advisory Group (SAG) with the government of Libya to facilitate the exchange of data and triangulate existing data, reports, and assessment on Libya and using the results to develop implementation plans and to streamline reproting mechanisms to UNHCT. "]
["·       Key Informant Interview"]
["Key informant interviews are the primary method of data collection and are done through direct interview with DCIM managers, staff and representatives, as well as with humanitarian and social organizations, community leaders who are recognised representatives from Baladiya offices (Social Affairs; Muhalla Affairs; etc.). Key Informant interviews are done either at target location or remote location as determined by the accessibility and safety, and security situation for each particular location. When direct interview will not be possible, remote interview is carried out. "]
["·       Direct Observation"]
["Direct observation is done when researchers have access to the Key Informant interviews directly at the site. It is done using the predefined checklist which is included as part of the form questionnaires. "]
["·       Focus Group Discussion"]
["Where appropriate a focus group is held. DTM Libya implements its Gender Sensitive Guidelines when carrying out Focus Group discussions (See DTM Libya Gender Sensitive Focus Group Guidelines - Mobility Tracking DTM Libya)."]
[]
["Coordination Mechanisms"]
["DTM is oriented at developing sustainability and resilience by building Libya's institutional capacity at all levels. Working with national NGOs, DTM aims to increase Libyan NGOs knowledge and capacity in managing large data collection systems. DTM will gain access to Libya's vulnerable populations by building its national counterparts’ capacities to deliver impartial and independent humanitarian action and gather life-saving geospatial data on vulnerable peoples’ needs and current situation."]
["In line with broader efforts at collaboration and communication, DTM works with the Libyan Government to build capacity, increase a discourse on Libya’s vulnerable populations and facilitate data collection efforts. DTM commitment to developing partnerships with the Libyan Government and the Bureau of Statistics aims to enrich DTM efforts and encourage relevant ministries to use DTM for their own policy and planning processes. To this end DTM has established the Strategic Advisory Group (SAG).  The SAG has been established to ensure the regular coordination of technical meetings between IOM’s DTM unit, Libya’s humanitarian actors and Libyan Government. The SAG is to convene technical meetings with Libyan Government institutions to review DTM datasets, develop common operational datasets, inform Government counterparts of DTM methodology and developed collaborative exercises. The technical meetings provide the platform to exchange data collection techniques, better familiarize the Global DTM methodology to the Libyan context and provide a platform to build institutional capacity and resilience in data collection and humanitarian assistance delivery. This cooperation will be mutually beneficial, establishing a common platform for the effective exchange of information and coordination of activities."]
[]
["Coordination with inter-agency partners especially related to assessments conducted by the Displacement Tracking Matrix allows for broader consensus on the credibility and relevance of the data, and encourages partners to incorporate the results of DTM data into their operational planning. To this end, DTM works with all relevant UN Working Groups and specifically with the Information Management and Assessment Working Group (IMAWG) and the Mixed Migration Working Group (MMWG). IOM is committed to enabling a more effective exchange of information regarding assessments, making them more relevant to the international community as a whole, and ensuring complementarity, rather than duplication of efforts, among agencies."]

{"sheet":"Enumerator Guideline","index":5,"n_rows":0,"n_cols":0,"rows_kept":0,"cut":false,"hidden":true,"merged":[]}

{"sheet":"DC Assessment Form","index":6,"n_rows":71,"n_cols":9,"rows_kept":71,"cut":false,"hidden":false,"merged":[[14,0,16,0],[14,1,16,1],[17,0,18,0],[17,1,18,1]]}
["Detention Centre Profile Assessment"]
["Indicator","Type of Input","Answer Choices"]
["Site Info"]
["Date of Assessment","Select from Calendar"]
["Detention centre Name","Dropdown list "]
["Enumerator Name","Input"]
[]
["Demographics"]
["What is the official capacity of this Detention Centre?","Input or selection","N#","Don't Know"]
["What is the official number of staff working at this Detention Centre?","Input or selection","N#","Don't Know"]
["Is there a functioning registration system in place?","Select one","Y/N"]
["How many migrants are in this centre today?\n","Input","N#"]
["Are women and men kept separately?","Select one","Y/N"]
["Are children and adults kept separately?","Select one","Y/N"]
["Out of the total number of migrants here, please provide the number of individuals in each category","Input",null,"0 – 18 years","19 - 59 years","> 60 years"]
[null,null,"Male","N#","N#","N#"]
[null,null,"Female","N#","N#","N#"]
["Select the top five nationalities present in Detention centre today and the number of migrants from each nationality.","Dropdown to select nationality then input to put number","Nationality","Nationality 1","Nationality 2","Nationality 3","Nationality 4","Nationality 5","All other nationalities"]
[null,null,"Number of migrants per nationality:","N#","N#","N#","N#","N#","N#"]
["Number of unaccompanied children in centre today","Input","N#"]
["Number of breastfeeding women in centre today","Input","N#"]
["Number of pregnant women in centre today","Input","N#"]
[]
["Health"]
["Are health services available at centre?","Select one. (If YES is selected then KOBO opens the rest of the HEALTH section. If NO is selected KOBO moves to SHELTER-NFI)","Y/N"]
["How often are health services available? ","Select one","Often (at least once a week)","Irregularly (once every few weeks)","Don’t know"]
["Is there a health clinic in the centre?","Select one","Y/N/Don't Know"]
["Do detainees undergo health examination upon entry to facility?","Select one","Y/N/Don't Know"]
["What happens when a detainee is seriously ill or injured?","Select one","Referred to the hospital","Treated on site if/when a health staff comes","Given medicine by detention centre staff","Don’t know"]
["How often are medicines available in the centre?","Select one","Regularly (available most of the time)","Irregularly (available every once in a while)","Never","Don’t know"]
["Is supplementary feeding available for pregnant / lactating mothers? ","Select one","Regularly (available most of the time)","Irregularly (available every once in a while)","Never","Don’t know"]
["Is supplementary feeding available for young children? ","Select one","Regularly (available most of the time)","Irregularly (available every once in a while)","Never","Don’t know"]
["Did children fall ill during the last 30 days ","Select one","None","Few","Some","Many","Don’t know"]
["If MANY what is the primary reported illness?","Multiple selections, input for last choice","Fever","Diarrhea","Coughing/ respiratory tract infection","Measles","Lack of nutrition","Dehydration","Others (please list)"]
["Did adults fall ill during the last 30 days ","Select one","None","Few","Some","Many","Don’t know"]
["If MANY what is the primary reported illness?","Multiple selections, input for last choice","Fever","Diarrhea","Coughing/ respiratory tract infection","Measles","Lack of nutrition","Dehydration","Others (please list)"]
["Number of births in the past 30 days? ","Input","N#"]
["If yes, where did the pregnant ladies give birth? ","Multiple selections, input for last choice","On site at the Detention Centre","At the hospital","At a health clinic/centre","Others (please list)"]
[]
["WASH"]
["Do migrants have regualr access to drinking water?","Select one","Y/N/Don't Know"]
["Are latrines functioning?","Select one","All","Some","Few","None","Don't know"]
["Are male and female separated latrines available? ","Select one","Y/N"]
["Are male and female separated bathing areas available?","Select one","Y/N"]
["Are sanitary hygiene kits available?","Select one","Y/N"]
["Are buckets available at site? ","Select one","Y/N"]
["Is there laundry facilities?","Select one","Y/N"]
[]
["Food Security"]
["Does the DC provide daily food?","Select one","Y/N"]
["How often is food supplied  (select one option)","Select one","Three times a day","Twice a day","Once a day","Don’t know"]
["Who are the food distributions supported by? (multiple choice one option)","Select one","Government (DCIM)","NGO","UN Agency"]
[]
["Protection"]
["Is there a private space where the detainees can talk to officials from international organizations / NGO?","Select one","Y/N"]
["Do migrants have access to legal services?","Select one","Y/N"]
["Do the majority of detainees have passports, identification card or other documents?","Select one","Y/N"]
["Are psychosocial support services available?","Select one","Y/N"]
["Is family-tracing available to migrants?","Select one","Y/N"]
["How much time do migrants spend outdoors during the day?","Select one","They move freely between indoors and outdoors","Less than half a day","More than half a day","Limited access to outdoors","Don't know"]
["How much electrical and functioning ligthing is at the centre?","Select one","A lot","Some","Limited ","None"]
["Is the ventilation system working in the centre?","Select one","Often ","Irregulary","No ventilation","Don't know"]
["How frequent are power cuts?","Select one","Frequent","Occasional","No power cuts","Don't know"]
["Do migrants have access to mobile phones?","Select one","Y/N/Don't know"]
["Are migrants able to make international calls?","Select one","Y/N/Don't know"]
["Do migrants have access to printed media?","Select one","Y/N/Don't know"]
["Do migrants have access to television?","Select one","Y/N/Don't know"]
["Do migrants have access to the internet?","Select one","Y/N/Don't know"]
[]
["Information Source"]
["Who did you collect the information for this assessment from?","Multiple selections, input for last choice","DCIM Detention centre manager","DCIM detention centre staff member","NGO worker active in detention centre"," Other, please specify"]

{"sheet":"DC Location Info","index":7,"n_rows":65,"n_cols":7,"rows_kept":65,"cut":false,"hidden":true,"merged":[]}
["Detention centres EN ","Muhalla","Baladiya","Mantika","Geodivision","Detention centres AR","Name"]
["Abusliem","Abu Salim al janubi","Abusliem","Tripoli","West","ابو سليم","Abusliem"]
["Ain Zara","Ain zara","Ain Zara","Tripoli","West","عين زارة","Ain Zara"]
["Al Bayda","El Zawiyah El Kadima","Albayda","Al Jabal Al Akhdar","East","البيضاء 1"]
["Al Bayda 2","El Zawiyah El Kadima","Albayda","Al Jabal Al Akhdar","East","البيضاء 2"]
["Al kufra","Jawf markaz","Alkufra","Alkufra","East","الكفرة الجوف","Alkufra, Jawf"]
["Al Serraj","Janzour al sharkiyah","Azzintan","Al Jabal Al Gharbi","West","السراج"]
["Al Zintan","Al markaz /Azzintan","Azzintan","Al Jabal Al Gharbi","West","الزنتان"]
["Al Zintan",null,"Azzintan","Al Jabal Al Gharbi","West","الزنتان","Al Zintan"]
["Alabyar","Al radmani","Alabyar","Benghazi","East","الابيار"]
["Al-Fallah","Bab Assalam","Tripoli","Tripoli","West","الفلاح","Al Fallah"]
["Algatroun","Algatroun","Algatroun","Murzuq","South","القطرون","Al Gatroun"]
["Al-Guweia","Al  Guweia","Garabolli","Almargeb","West","القرة بولي","Al-Guweia"]
["Aljufra (Hun)","Hun El Janoubia","Aljufra","Aljufra","South","الجفرة","Aljufra (hun)"]
["Alkhums","Labda","Alkhums","Almargeb","West","الخمس","Alkhums"]
["Almarj","Al Marj El Charquia","Almarj","Almarj","East","المرج"]
["Alqubba","Koba El Chamalia","Alqubba","Derna","East","القبة"]
["AlSabaa","Ain Zara","Ain Zara","Tripoli","West","السبعة","AlSabaa"]
["Anjila","Janzour al wasat","Janzour","Aljfara","West","انجيلة"]
["Anjila","Janzour al wasat","Janoub Azzawya","Azzawya","West","انجيلة"]
["Azzawya Abu Issa","Sidi issa","Azzawya","Azzawya","West","ابو عيسى"]
["Azzawya Shuhada al Nasr","Sidi nasr","Azzawya","Azzawya","West","شهداء النصر","Azzawya Shuhada al Nasr"]
["Benghazi Al Kufiyah","Alkwyfiah","Benghazi","Benghazi","East","بنغازي الكويفية"]
["Benghazi Al Wafiah",null,"Benghazi","Benghazi","East","بنغازي اللوفية"]
["Benghazi Ganfouda","Qnfodah","Benghazi","Benghazi","East","بنغازي قنفودة","Benghazi Ganfouda"]
["Brak Shati","Qira","Brak","Wadi Ashshati","South","براك الشاطئ","Brak Shati"]
["Daraj","Daraj","Daraj","Nalut","West","درج","Daraj"]
["Derna","El Bilad","Derna","Derna","East","درنة"]
["Ejdabia","Ezahf El Akhthar","Ejdabia","Ejdabia","East","اجدابيا","Ejdabia"]
["Gemienis","Qaminis Echarquia","Gemienis","Benghazi","East","قمينس"]
["Ghat ","Ghat ","Ghat","Ghat","South","غات","Ghat "]
["Ghiryan Aburshada","Al kawassim","Ghiryan","Al Jabal Al Gharbi","West","غريان ابو رشادة","Ghiryan Aburshada"]
["Ghiryan al Hamra","Al kawassim","Ghiryan","Al Jabal Al Gharbi","West","غريان الحمراء","Ghiryan al Hamra"]
["Investigation Unit Ras Hassan","Shuhadaa Ashaatt","Tripoli","Tripoli","West","راس حسن"]
["Jaghbub","Jaghbub","Tobruk","Tobruk","East","الجغبوب"]
["Janzour",null,"Janzour","Aljfara","West","جنزور","Janzour subsidiary "]
["Khalet al Furjan","Abu Salim al janubi","Abusliem","Tripoli","West","خلة الفرجان","Al Khalla (Khalet al Furjan)"]
["Misrata Al Jawiya DC ",null,"Misrata","Misrata","West","مصراتة الجوية"]
["Misrata Kararim",null,"Misrata","Misrata","West","مصراتة الكراريم","Misrata"]
["Mitiga",null,"Tripoli","Tripoli","West","معيتيقة ","Investigation Unit Mitiga airport"]
["Qasr Bin Ghasheer","Bir attutah","Qasr Bin Ghasheer","Aljfara","West","قصر بن غشير","Qasr Bin Ghasheer"]
["Sabratha Melita","Assuk / sabratah","Sabratha","Zwara","West","صبراتة","Sabratha"]
["Salah Aldin","Abu Salim al janubi","Abusliem","Tripoli","West","صلاح الدين","Salah Adin"]
["Sebha (Mahdia)","Mahdia","Sebha","Sebha","South","سبها المهدية","Sebha"]
["Sebha 2 Trig al Matar","El Kahira","Sebha","Sebha","South","سبها طريق المطار","Sebha airport Route "]
["Shahhat","Shahat Al Kadima","Shahhat","Al Jabal Al Akhdar","East","شحات","Shahhat"]
["Sirt","El gharbiyat","Sirt","Sirt","West","سرت"]
["Suq Alkhamees",null,"Suq Alkhamees","Aljfara","West","سوق الخميس","Suq Alkhamees"]
["Surman men","Ashati","Surman","Azzawya","West","صرمان 1 رجال","Surman 1"]
["Surman women","Ashati","Surman","Azzawya","West","صرمان 2 نساء","Surman 2 (women)"]
["Tajoura","Al hamidiyah","Tajoura","Tripoli","West","تاجوراء","Tajoura"]
["Tarhuna, Souk Al Ahad","Suk al ahad","Tarhuna","Almargeb","West","ترهونة سوق الاحد","Tarhuna, Suk al Ahad"]
["Thaher Al Jabal",null,"Azzintan","Al Jabal Al Gharbi","West","ظهر الجبل","Thaher Al Jabal"]
["Tobruk","El Madina","Tobruk","Tobruk","East","طبرق","Tobruk"]
["Toukra","Alakoriah El markaz","Toukra","Benghazi","East","توكرة","Toukra"]
["Trig Al Matar","Abu Salim al janubi","Abusliem","Tripoli","West","طريق المطار"]
["Triq al Sika","Shuhadaa Ashaatt","Tripoli","Tripoli","West","طريق السكة","Tripoli Subsidiary – Sekah Route "]
["Trig al Shook ","Al masira al kubra","Ain Zara","Tripoli","West","طريق الشوك","Triq al Shook"]
["Ubari",null,"Ubari","Ubari","South","اوباري"]
["Zliten","Abu rkaya","Zliten","Misrata","West","زليتن","Zliten"]
["Zwara","Al janubiyah","Zwara","Zwara","West","زوارة","Zwara"]
["Wadi Al Hai",null,"Ghiryan","Al Jabal Al Gharbi","West","وادي الحي","Wadi Al Hai"]
["Mabani","Ghut ashaal","Hai Al Andulas","Tripoli","West","المباني","Mabani"]
["Shara Zawya",null,"Tripoli","Tripoli","West","شارع الزاوية","Shara Zawya"]
["Baten Al Jabal","Tiji","Baten Aljabal","Nalut","West","باطن الجبل","Baten Al Jabal"]

{"sheet":"index map","index":8,"n_rows":34,"n_cols":1,"rows_kept":34,"cut":false,"hidden":true,"merged":[]}
[]
["Abusliem"]
["Suq Alkhamees"]
["Mabani"]
["Azzawya Abu Issa"]
["Benghazi Al Wafiah"]
["Ghiryan al Hamra"]
["Ghiryan Aburshada"]
["Sabratha Melita"]
["Salah Aldin"]
["Shahhat"]
["Algatroun"]
["Daraj"]
["Alqubba"]
["Tobruk"]
["Toukra"]
["Trig Al Matar"]
["Triq al Sika"]
["Trig al Shook "]
["Zwara"]
["Ain Zara"]
["Al kufra"]
["Ejdabia"]
["Janzour"]
["Benghazi Ganfouda"]
["Zliten"]
["Thaher Al Jabal"]
["Al Bayda"]
["Baten Al Jabal"]
["Brak Shati"]
["Shara Zawya"]
["Wadi Al Hai"]
["Azzawya Shuhada al Nasr"]
["Al kufra"]